{"text_format":"1","workbook":"xlsx","n_sheets":16,"sheets":["Титульный","ПП 2015","ПП 2017-2019","ПП 2015-2019","ПМ оборудования 2015 г","ПМ оборудования 2017","Расчет ээ","Расшифровка ээ на общепр. нужды","Хар-ка сетей","Реализация услуг","Стоки от собственного произв.","План мероприятий 2015 г","План мероприятий 2016","План мероприятий 2017","План мероприятий 2018","План мероприятий 2019"],"not_rendered":{"charts":0,"images":0,"macros":0,"external_links":2,"defined_names":5,"comments":0,"pivot_tables":0},"unopened":[],"bounds":{"document_bytes":16777216,"sheet_cells":100000,"rows_first":2000,"rows_last":500,"rows_between":2000,"halvings":0,"cell_chars":16384,"cell_head_chars":4096},"cells_cut":0,"cells_raw":0,"read":"whole","date_system":"1900"}

{"sheet":"Титульный","index":0,"n_rows":57,"n_cols":10,"rows_kept":57,"cut":false,"hidden":false,"merged":[[56,0,56,4],[23,0,23,14],[24,9,25,14],[27,0,27,14],[35,3,35,12]]}
["Утверждаю :",null,null,null,null,null,null,null,null,"Утверждаю:"]
[null,null,null,null,null,null,null,null,null,"Комитет по тарифам и ценовой политике"]
["Руководитель предприятия",null,null,null,null,null,null,null,null,"Ленинградской области"]
[null,null,null,null,null,null,null,null,null,"(191311, Санкт-Петербург, ул. Смольного, д.3)"]
[]
[null,null,null,null,null,null,null,null,null,"приказ ЛенРТК от _______________________ № _______"]
["\"             \"",null,null,"2015 год"]
["МП"]
["МП"]
[]
[]
[]
[]
[]
[]
[]
[]
[]
[]
[]
[]
[]
[]
["Производственная программа  в сфере водоотведения на ___________2017-2019 годы_________________________________"]
[]
[]
[]
["________________________________________________________________________________________________"]
[null,null,"                                                 (наименование организации,ее местонахождение)"]
[]
[]
[]
[]
[]
[null,null,null,"вид услуги",null,null,"транспортировка сточных вод"]
[]
[]
[]
[]
[]
[]
[]
[]
[]
[]
[]
[]
[]
[]
[]
[]
[]
[]
[]
[]
[]
["Приложение:  на ________________ листах"]

{"sheet":"ПП 2015","index":1,"n_rows":24,"n_cols":18,"rows_kept":24,"cut":false,"hidden":false,"merged":[[5,0,5,17],[12,10,12,11],[12,12,13,12],[12,13,12,14],[12,15,13,15],[12,16,12,17],[8,0,13,0],[8,1,13,1],[8,2,13,2],[8,3,8,17],[9,3,11,5],[9,6,9,17],[10,6,11,8],[10,9,10,17],[11,9,11,11],[11,12,11,14],[11,15,11,17],[12,3,13,3],[12,4,12,5],[12,6,13,6],[12,7,12,8],[12,9,13,9]]}
[null,null,null,null,null,null,null,null,null,null,null,null,"(таблица не подлежит распечатке)"]
[]
[]
[]
[]
["Раздел 1. Обоснование обеспечения фактического объема и качества услуг в сфере водоотведения (транспортировка сточных вод)  за  2015 год"]
[]
[]
["№ п/п","Показатели","Ед. изм.","2015 год"]
[null,null,null,"предусмотрено в тарифе",null,null,"факт по данным организации"]
[null,null,null,null,null,null,"всего по организации",null,null,"в том числе по ЦСВ"]
[null,null,null,null,null,null,null,null,null,"МО 1",null,null,"МО 2",null,null,"МО 3"]
[null,null,null,"Всего в год","в том числе",null,"Всего в год","в том числе",null,"Всего в год","в том числе",null,"Всего в год","в том числе",null,"Всего в год","в том числе"]
[null,null,null,null,"с 01.01.2015 по 30.06.2015","с 01.07.2015 по 31.12.2015",null,"с 01.01.2015 по 30.06.2015","с 01.07.2015 по 31.12.2015",null,"с 01.01.2015 по 30.06.2015","с 01.07.2015 по 31.12.2015",null,"с 01.01.2015 по 30.06.2015","с 01.07.2015 по 31.12.2015",null,"с 01.01.2015 по 30.06.2015","с 01.07.2015 по 31.12.2015"]
[1,2,3,4,5,6,7,8,9,10,11,12,13,14,15,16,17,18]
["1","Принято сточных вод для передачи (транспортировки), всего, в том числе:","тыс. м3"]
["1.1","Объем транспортируемой собственной сточной жидкости","тыс. м3"]
["1.2","Объем товарной сточной жидкости (транспортировка), всего, в том числе:","тыс. м3"]
["1.2.1"," - от гарантирующих организаций","тыс. м3"]
["1.2.2","- от иных потребителей","тыс. м3"]
["2","Расход электроэнергии – всего, в том числе:","тыс. кВт.ч"]
["2.1","расход электроэнергии на технологические нужды","тыс. кВт.ч"]
["2.1.1","Удельный расход электроэнергии на технологические нужды","кВтч/м3"]
["2.2","расход электроэнергии на общепроизводственные нужды","тыс. кВт.ч"]

{"sheet":"ПП 2017-2019","index":2,"n_rows":21,"n_cols":39,"rows_kept":21,"cut":false,"hidden":false,"merged":[[2,1,2,7],[9,13,9,14],[6,0,10,0],[6,1,10,1],[6,2,10,2],[6,3,6,14],[7,3,8,5],[7,6,7,14],[8,6,8,8],[8,9,8,11],[8,12,8,14],[9,3,10,3],[9,4,9,5],[9,6,10,6],[9,7,9,8],[9,9,10,9],[9,10,9,11],[6,15,6,26],[7,15,8,17],[7,18,7,26],[8,18,8,20],[8,21,8,23],[8,24,8,26],[9,12,10,12],[9,36,10,36],[9,15,10,15],[9,16,9,17],[9,18,10,18],[9,19,9,20],[9,21,10,21],[9,37,9,38],[9,22,9,23],[9,24,10,24],[9,25,9,26],[6,27,6,38],[7,27,8,29],[7,30,7,38],[8,30,8,32],[8,33,8,35],[8,36,8,38],[9,27,10,27],[9,28,9,29],[9,30,10,30],[9,31,9,32],[9,33,10,33],[9,34,9,35]]}
[null,null,null,null,null,null,null,null,null,null,null,null,null,null,null,null,null,null,null,null,null,null,null,null,null,null,"(таблица не подлежит распечатке)"]
[]
[]
["Раздел 1. Обоснование обеспечения прогнозируемого объема и качества услуг в сфере водоотведения (транспортировка сточных вод) в 2017-2019  годах с разбивкой по периодам "]
[]
[]
["№ п/п","Показатели","Ед. изм.","Плановый  период (2017 год)",null,null,null,null,null,null,null,null,null,null,null,"Плановый  период (2018 год)",null,null,null,null,null,null,null,null,null,null,null,"Плановый  период (2019 год)"]
[null,null,null,"всего по организации ",null,null,"в том числе по ЦСВ",null,null,null,null,null,null,null,null,"всего по организации ",null,null,"в том числе по ЦСВ",null,null,null,null,null,null,null,null,"всего по организации ",null,null,"в том числе по ЦСВ"]
[null,null,null,null,null,null,"МО 1",null,null,"МО 2",null,null,"МО 3",null,null,null,null,null,"МО 1",null,null,"МО 2",null,null,"МО 3",null,null,null,null,null,"МО 1",null,null,"МО 2",null,null,"МО 3"]
[null,null,null,"Всего в год","в том числе",null,"Всего в год","в том числе",null,"Всего в год","в том числе",null,"Всего в год","в том числе",null,"Всего в год","в том числе",null,"Всего в год","в том числе",null,"Всего в год","в том числе",null,"Всего в год","в том числе",null,"Всего в год","в том числе",null,"Всего в год","в том числе",null,"Всего в год","в том числе",null,"Всего в год","в том числе"]
[null,null,null,null,"с 01.01.2017 по 30.06.2017","с 01.07.2017 по 31.12.2017",null,"с 01.01.2017 по 30.06.2017","с 01.07.2017 по 31.12.2017",null,"с 01.01.2017 по 30.06.2017","с 01.07.2017 по 31.12.2017",null,"с 01.01.2017 по 30.06.2017","с 01.07.2017 по 31.12.2017",null,"с 01.01.2018 по 30.06.2018","с 01.07.2018 по 31.12.2018",null,"с 01.01.2018 по 30.06.2018","с 01.07.2018 по 31.12.2018",null,"с 01.01.2018 по 30.06.2018","с 01.07.2018 по 31.12.2018",null,"с 01.01.2018 по 30.06.2018","с 01.07.2018 по 31.12.2018",null,"с 01.01.2019 по 30.06.2019","с 01.07.2019 по 31.12.2019",null,"с 01.01.2019 по 30.06.2019","с 01.07.2019 по 31.12.2019",null,"с 01.01.2019 по 30.06.2019","с 01.07.2019 по 31.12.2019",null,"с 01.01.2019 по 30.06.2019","с 01.07.2019 по 31.12.2019"]
[1,2,3,4,5,6,7,8,9,10,11,12,13,14,15,16,17,18,19,20,21,22,23,24,25,26,27,28,29,30,31,32,33,34,35,36,37,38,39]
["1","Принято сточных вод для передачи (транспортировки), всего, в том числе:","тыс. м3"]
["1.1","Объем транспортируемой собственной сточной жидкости","тыс. м3"]
["1.2","Объем товарной сточной жидкости (транспортировка), всего, в том числе:","тыс. м3"]
["1.2.1"," - от гарантирующих организаций","тыс. м3"]
["1.2.2","- от иных потребителей","тыс. м3"]
["2","Расход электроэнергии – всего, в том числе:","тыс. кВт.ч"]
["2.1","расход электроэнергии на технологические нужды","тыс. кВт.ч"]
["2.1.1","Удельный расход электроэнергии на технологические нужды","кВтч/м3"]
["2.2","расход электроэнергии на общепроизводственные нужды","тыс. кВт.ч"]

{"sheet":"ПП 2015-2019","index":3,"n_rows":19,"n_cols":13,"rows_kept":19,"cut":false,"hidden":false,"merged":[[7,7,8,7],[7,8,8,8],[6,0,8,0],[6,1,8,1],[6,2,8,2],[6,3,6,4],[6,5,6,6],[6,7,6,8],[7,3,8,3],[7,4,8,4],[7,5,8,5],[7,6,8,6],[6,9,6,10],[6,11,6,12],[7,9,8,9],[7,10,8,10],[7,11,8,11],[7,12,8,12]]}
[]
[]
[]
[]
["Раздел 1. Обоснование обеспечения прогнозируемого объема и качества услуг в сфере водоотведения (транспортировка сточных вод)"]
[]
["№ п/п","Показатели","Ед. изм.","Отчетный период (2015 год)",null,"Базовый  период (2016 год)",null,"Плановый период (2017 год)",null,"Плановый период (2018 год)",null,"Плановый период (2019 год)"]
[null,null,null,"Предусмотрено в тарифе ","Факт по данным организации","Предусмотрено в тарифе ","Ожидаемое исполнение по данным организации","Данные организации","Принято ЛенРТК","Данные организации","Принято ЛенРТК","Данные организации","Принято ЛенРТК"]
[]
[1,2,3,4,5,6,7,8,9,10,11,12,13]
["1","Принято сточных вод для передачи (транспортировки), всего, в том числе:","тыс. м3"]
["1.1","Объем транспортируемой собственной сточной жидкости","тыс. м3"]
["1.2","Объем товарной сточной жидкости (транспортировка), всего, в том числе:","тыс. м3"]
["1.2.1"," - от гарантирующих организаций","тыс. м3"]
["1.2.2","- от иных потребителей","тыс. м3"]
["2","Расход электроэнергии – всего, в том числе:","тыс. кВт.ч"]
["2.1","расход электроэнергии на технологические нужды","тыс. кВт.ч"]
["2.1.1","Удельный расход электроэнергии на технологические нужды","кВтч/м3"]
["2.2","расход электроэнергии на общепроизводственные нужды","тыс. кВт.ч"]

{"sheet":"ПМ оборудования 2015 г","index":4,"n_rows":34,"n_cols":12,"rows_kept":34,"cut":false,"hidden":false,"merged":[[4,0,4,10],[7,0,8,0],[7,1,8,1],[7,2,8,2],[7,3,8,3],[7,4,8,4],[7,5,7,7],[7,8,8,8],[7,9,8,9],[7,10,8,10],[7,11,8,11],[10,0,10,11],[16,0,16,11],[37,3,37,5],[40,3,40,5],[30,3,30,5],[33,3,33,5]]}
[null,null,null,null,null,null,null,null,null,null,"Приложение 1"]
[null,null,null,null,null,null,null,null,null,null,"Таблица 1.2"]
[]
[]
["Перечень насосного оборудования по объектам водоотведения (транспортировка сточных вод) -  факт 2015 года"]
[]
[]
["№ п/п","Наименование оборудования и его местоположение","Марка насоса","Количество насосов находящихся в работе, шт","Количество насосов, находящихся в резерве, шт","Характеристика оборудования",null,null,"Количество час работы насосов году, час","КПД насосов, %","КПД электродвигателя (по паспорту), %","Расход электроэнергии на технологические нужды, тыс.кВт.ч"]
[null,null,null,null,null,"Производительность, м3/час","Напор, м","Мощность электродвигателя, кВт"]
[1,2,3,4,5,6,7,8,9,10,11,12]
["Муниципальный район: МО 1"]
[1,"Транспортировка сточных вод","х","х","х"]
["1.1","Насос 1"]
["1.2","Насос 2"]
["…","…"]
["0","Итого по МО","х",null,null,"х","х","х","х","х","х"]
["Муниципальный район: МО 2"]
[1,"Транспортировка сточных вод","х","х","х"]
["1.1","Насос 1"]
["1.2","Насос 2"]
["…","…"]
["0","Итого по МО","х",null,null,"х","х","х","х","х","х"]
[]
[null,"Итого по организации ","х",null,null,"х","х","х","х","х","х"]
[]
[null,"Примечание: Данные, предусмотренные организацией в графе 12, должны быть подтверждены расчетом"]
[]
[]
["М.П."]
[]
[null,"Должность руководителя, подпись",null,"Фамилия, имя, отчество"]
[]
[null,null,"                             "]
[null,"Должность исполнителя, подпись",null,"Фамилия, имя, отчество"]

{"sheet":"ПМ оборудования 2017","index":5,"n_rows":61,"n_cols":14,"rows_kept":61,"cut":false,"hidden":false,"merged":[[10,0,10,12],[16,0,16,12],[30,3,30,6],[33,3,33,6],[7,5,8,5],[7,6,7,8],[7,9,8,9],[7,10,8,10],[7,11,8,11],[7,12,8,12],[57,4,57,7],[60,4,60,7],[5,1,5,13],[36,6,36,8],[36,9,37,9],[36,10,37,10],[36,11,37,11],[36,12,37,12],[36,13,37,13],[39,0,39,13],[45,0,45,13],[7,0,8,0],[7,1,8,1],[7,2,8,2],[7,3,8,3],[7,4,8,4],[36,0,37,0],[36,1,37,1],[36,2,37,2],[36,3,37,3],[36,4,37,4]]}
[]
[null,null,null,null,null,null,null,null,null,null,null,null,"Приложение 1"]
[null,null,null,null,null,null,null,null,null,null,null,null,"Таблица 1.3"]
[]
[]
[null,"Перечень насосного оборудования по объектам водоотведения (транспортировка сточных вод) -план 2017 года"]
[]
["№ п/п","Наименование оборудования и его местоположение","Марка насоса","Количество насосов находящихся в работе, шт","Количество насосов, находящихся в резерве, шт","Объем стоков в год, тыс. м3","Характеристика оборудования",null,null,"Количество час работы насосов году, час","КПД насосов, %","КПД электродвигателя (по паспорту), %","Расход электроэнергии на технологические нужды, тыс.кВт.ч"]
[null,null,null,null,null,null,"Производительность, м3/час","Напор, м","Мощность электродвигателя, кВт"]
[1,2,3,4,5,6,7,8,9,10,11,12,13]
["Муниципальный район: МО 1"]
[1,"Транспортировка сточных вод","х","х","х"]
["1.1","Насос 1"]
["1.2","Насос 2"]
["…","…"]
["0","Итого по МО","х",null,null,null,"х","х","х","х","х","х"]
["Муниципальный район: МО 2"]
[1,"Транспортировка сточных вод","х","х","х"]
["1.1","Насос 1"]
["1.2","Насос 2"]
["…","…"]
["0","Итого по МО","х",null,null,null,"х","х","х","х","х","х"]
[]
[null,"Итого по организации ","х",null,null,null,"х","х","х","х","х","х"]
[]
[null,"Примечание: Данные, предусмотренные организацией в графе 13, должны быть подтверждены расчетом"]
[]
[]
["М.П."]
[]
[null,"Должность руководителя, подпись",null,"Фамилия, имя, отчество"]
[]
[null,null,"                             "]
[null,"Должность исполнителя, подпись",null,"Фамилия, имя, отчество"]
[]
[null," "]
["№ п/п","Наименование оборудования и его местоположение","Марка насоса","Количество насосов находящихся в работе, шт","Количество насосов, находящихся в резерве, шт",null,"Характеристика оборудования",null,null,"Количество час работы насосов году, час","КПД насосов, %","КПД электродвигателя (по паспорту), %","Формула расчёта технологических затрат электроэнергии","Технологические затраты электроэнергии, кВт.ч"]
[null,null,null,null,null,null,"Производительность, м3/час","Напор, м","Мощность электродвигателя, кВт"]
[1,2,3,4,5,null,6,7,8,9,10,11,null,12]
["Муниципальный район: МО 1"]
[1,"Транспортировка стоков","х",{"$f":"SUM(D42:D43)","v":0},{"$f":"SUM(E42:E43)","v":0},null,{"$f":"SUM(G42:G43)","v":0}]
["1.1","Насос 1",null,null,null,null,null,null,{"$f":"nErr((H42*G42*999.81)/(3600*102*(K42/100)*(L42/100)))","v":{"$error":"#NAME?"}}]
["1.2","Насос 2",null,null,null,null,null,null,{"$f":"nErr((H43*G43*999.81)/(3600*102*(K43/100)*(L43/100)))","v":{"$error":"#NAME?"}}]
["…","…",null,null,null,null,null,null,{"$f":"nErr((H44*G44*999.81)/(3600*102*(K44/100)*(L44/100)))","v":{"$error":"#NAME?"}}]
["0","Итого по МО","х",{"$f":"SUM(D42:D44)","v":0},{"$f":"SUM(E42:E44)","v":0},null,"х","х","х","х","х","х",null,{"$f":"SUM(N42:N44)","v":0}]
["Муниципальный район: МО 2"]
[1,"Транспортировка стоков","х",{"$f":"SUM(D48:D49)","v":0},{"$f":"SUM(E48:E49)","v":0},null,{"$f":"SUM(G48:G49)","v":0}]
["1.1","Насос 1",null,null,null,null,null,null,{"$f":"nErr((H48*G48*999.81)/(3600*102*(K48/100)*(L48/100)))","v":{"$error":"#NAME?"}}]
["1.2","Насос 2",null,null,null,null,null,null,{"$f":"nErr((H49*G49*999.81)/(3600*102*(K49/100)*(L49/100)))","v":{"$error":"#NAME?"}}]
["…","…",null,null,null,null,null,null,{"$f":"nErr((H50*G50*999.81)/(3600*102*(K50/100)*(L50/100)))","v":{"$error":"#NAME?"}}]
["0","Итого по МО","х",{"$f":"SUM(D48:D50)","v":0},{"$f":"SUM(E48:E50)","v":0},null,"х","х","х","х","х","х",null,{"$f":"SUM(N48:N50)","v":0}]
[null,"В целом по предприятию","х",{"$f":"SUMIF($C40:$C95,\"Итого по МО\",D40:D95)","v":0},{"$f":"SUMIF($C40:$C95,\"Итого по МО\",E40:E95)","v":0},null,{"$f":"SUMIF($C40:$C95,\"Итого по МО\",G40:G95)","v":0},"х","х","х","х","х",null,{"$f":"SUMIF($C40:$C95,\"Итого по МО\",N40:N95)","v":0}]
[]
[]
[]
[]
[]
[null,null,"Должность руководителя, подпись",null,"Фамилия, имя, отчество"]
[]
[null,null,null,"                             "]
[null,null,"Должность исполнителя, подпись",null,"Фамилия, имя, отчество"]

{"sheet":"Расчет ээ","index":6,"n_rows":27,"n_cols":13,"rows_kept":27,"cut":false,"hidden":false,"merged":[[9,9,9,10],[9,11,9,12],[23,3,23,5],[26,3,26,5],[6,0,6,8],[9,7,9,8],[9,0,10,0],[9,1,10,1],[9,2,10,2],[9,3,9,4],[9,5,9,6]]}
[null,null,null,null,null,null,null,null,null,null,null,null,"Приложение 1"]
[null,null,null,null,null,null,null,null,null,null,null,null,"Таблица 1.4"]
[]
[]
[]
[]
["Расчет электрической энергии на производство и реализацию услуг в сфере водоотведения"]
[null,null,null,null,"(транспортировка сточных вод)"]
[]
["№ п/п","Наименование направления расхода электрической энергии","Ед. изм.","2015 год",null,"2016 год",null,"2017 год",null,"2018 год",null,"2019 год"]
[null,null,null,"Предусмотрено в тарифе","Факт по данным организации","Предусмотрено в тарифе","Ожидаемое исполнение по данным организации","План организации","Принято ЛенРТК","План организации","Принято ЛенРТК","План организации","Принято ЛенРТК"]
[1,2,3,4,5,6,7,8,9,10,11,12,13]
["1","Всего по организации (стр2+стр3)","тыс кВт.ч"]
["2","На технологические нужды,  всего, в том числе:","тыс кВт.ч"]
["2.1","Транспортировка сточных вод","тыс кВт.ч"]
["3","На общепроизводственные нужды,  всего, в том числе:","тыс кВт.ч"]
["3.1","На электроотопление зданий и сооружений","тыс кВт.ч"]
["3.2","На освещение зданий и сооружений","тыс кВт.ч"]
["3.3","На работу вспомогательного оборудования","тыс.кВт.ч"]
[]
["М.П."]
[]
[]
[null,"Должность руководителя, подпись",null,"Фамилия, имя, отчество"]
[]
[null,null,"                             "]
[null,"Должность исполнителя, подпись",null,"Фамилия, имя, отчество"]

{"sheet":"Расшифровка ээ на общепр. нужды","index":7,"n_rows":26,"n_cols":12,"rows_kept":26,"cut":false,"hidden":false,"merged":[[14,1,14,12],[22,3,22,5],[25,3,25,5]]}
[null,null,null,null,null,null,null,null,null,null,null,"Приложение 1"]
[null,null,null,null,null,null,null,null,null,null,null,"Таблица 1.5"]
[]
[null,null,null,null,null,"Расчет потребности в электрической энергии на общепроизводственные нужды"]
[]
[]
[]
[]
[]
[]
[]
[]
[]
[]
[null,"Заполняется организацией в произвольной форме с указанием  оборудования в соответствии с таблицей 1.4."]
[]
[]
[]
[]
["М.П."]
[]
[]
[null,"Должность руководителя, подпись",null,"Фамилия, имя, отчество"]
[]
[null,null,"                             "]
[null,"Должность исполнителя, подпись",null,"Фамилия, имя, отчество"]

{"sheet":"Хар-ка сетей","index":8,"n_rows":33,"n_cols":8,"rows_kept":33,"cut":false,"hidden":false,"merged":[[26,1,26,2],[11,1,11,2],[29,3,29,5],[32,3,32,5],[24,0,24,2],[12,0,13,0],[12,1,17,1],[18,0,19,0],[18,1,23,1],[25,0,25,2],[4,0,4,7],[7,0,7,7],[8,0,9,0],[8,1,9,1],[8,2,9,2],[8,3,9,3],[8,4,8,7]]}
[]
[null,null,null,null,null,null,null,"Приложение 1"]
[null,null,null,null,null,null,null,"Таблица 1.6"]
[]
["Характеристика сетей водоотведения"]
[]
[]
[]
["№ п/п","Наименование",null,"Всего","в том числе по поселениям"]
[null,null,null,null,"МО 1","МО 2","МО 3","…"]
[1,2,3,4,5,6,7,8]
[1,"Сети водоотведения",null,"х","х","х","х","х"]
["1.1","Протяженность сетей","Итого, км"]
[null,null,"в том числе:","х","х","х","х","х"]
["1.1.1",null,"диаметр от 50мм до 250мм"]
["1.1.2",null,"диаметр от 250мм до 500мм"]
["1.1.3",null,"диаметр от 500мм до 1000мм"]
["1.1.4",null,"диаметр от 1000мм"]
["1.2","Протяженность сетей, нуждающихся в замене","Итого, км"]
[null,null,"в том числе:","х","х","х","х","х"]
["1.2.1",null,"диаметр от 50мм до 250мм"]
["1.2.2",null,"диаметр от 250мм до 500мм"]
["1.2.3",null,"диаметр от 500мм до 1000мм"]
["1.2.4",null,"диаметр от 1000мм"]
["ВСЕГО  сетей водоотведения,"]
["в том числе нуждающихся в замене (ед.)"]
[]
["М.П."]
[]
[null,"Должность руководителя, подпись",null,"Фамилия, имя, отчество"]
[]
[null,null,"                             "]
[null,"Должность исполнителя, подпись",null,"Фамилия, имя, отчество"]

{"sheet":"Реализация услуг","index":9,"n_rows":64,"n_cols":14,"rows_kept":64,"cut":false,"hidden":false,"merged":[[10,1,10,9],[29,1,29,9],[48,1,48,9],[60,4,60,5],[63,4,63,5],[7,10,7,11],[7,12,7,13],[6,3,6,13],[3,1,3,9],[6,0,8,0],[6,1,8,1],[6,2,8,2],[7,3,8,3],[7,4,7,5],[7,6,7,7],[7,8,7,9]]}
[null,null,null,null,null,null,null,null,null,null,null,null,null,"Приложение 1"]
[null,null,null,null,null,null,null,null,null,null,null,null,null,"Таблица 1.7"]
[]
[null,"Объемы транспортируемых сточных вод, принимаемых от потребителей"]
[]
[]
["№ п/п","Наименование потребителей","№ и дата договора","Принятый объем (тыс.м3)"]
[null,null,null,"Предусмотрено в договоре","2015 год",null,"2016 год",null,"2017 год",null,"2018 год",null,"2019 год"]
[null,null,null,null,"предусмотрено в тарифе","факт по данным организации","предусмотрено в тарифе","ожидаемое исполнение по данным организации","план организации","принято ЛенРТК","план организации","принято ЛенРТК","план организации","принято ЛенРТК"]
[1,2,3,4,5,6,7,8,9,10,11,12,13,14]
[null,"Муниципальный район: МО 1______________________________________"]
["1.","Всего, в том числе:"]
["1.1.","от Управляющих компаний, ТСЖ и др. (по населению)"]
["1.1.1.","Потребитель 1"]
["1.1.2.","Потребитель 2"]
["…","…"]
["1.2.","от населения"]
["1.3.","от бюджетных организаций "]
["1.3.1.","Потребитель 1"]
["1.3.2.","Потребитель 2"]
["…","…"]
["1.4.","от организаций, оказывающих услуги в сфере водоотведения"]
["1.4.1.","Потребитель 1"]
["1.4.2.","Потребитель 2"]
["…","…"]
["1.5.","от иных потребителей"]
["1.5.1.","Потребитель 1"]
["1.5.2.","Потребитель 2"]
["…","…"]
[null,"Муниципальный район: МО 2______________________________________"]
["2.","Всего, в том числе:"]
["2.1.","от Управляющих компаний, ТСЖ и др. (по населению)"]
["2.1.1.","Потребитель 1"]
["2.1.2.","Потребитель 2"]
["…","…"]
["2.2.","от населения"]
["2.3.","от бюджетных организаций "]
["2.3.1.","Потребитель 1"]
["2.3.2.","Потребитель 2"]
["…","…"]
["2.4.","от организаций, оказывающих услуги в сфере водоотведения"]
["2.4.1.","Потребитель 1"]
["2.4.2.","Потребитель 2"]
["…","…"]
["2.5.","от иных потребителей"]
["2.5.1.","Потребитель 1"]
["2.5.2.","Потребитель 2"]
["…","…"]
[null,"и т.д."]
[null,"Всего по организации, в том числе:"]
[null,"от Управляющих компаний, ТСЖ и др. (по населению)"]
[null,"от населения"]
[null,"от бюджетных организаций "]
[null,"от организаций, оказывающих услуги в сфере водоотведения"]
[null,"от иных потребителей"]
[]
[]
[]
["М.П."]
[]
[null,"Должность руководителя, подпись",null,null,"Фамилия, имя, отчество"]
[]
[null,null,"                             "]
[null,"Должность исполнителя, подпись",null,null,"Фамилия, имя, отчество"]

{"sheet":"Стоки от собственного произв.","index":10,"n_rows":25,"n_cols":12,"rows_kept":25,"cut":false,"hidden":false,"merged":[[21,1,21,2],[21,3,21,4],[24,1,24,2],[24,3,24,4],[8,0,10,0],[8,1,10,1],[8,2,8,3],[8,4,8,5],[8,6,8,7],[9,2,10,2],[9,3,10,3],[9,4,10,4],[9,5,10,5],[9,6,10,6],[9,7,10,7],[8,8,8,9],[8,10,8,11],[9,8,10,8],[9,9,10,9],[9,10,10,10],[9,11,10,11]]}
[null,null,null,null,null,null,null,null,null,null,null,"Приложение1"]
[null,null,null,null,null,null,null,null,null,null,null,"Таблица 1.8"]
[]
[]
[]
[null,"Расчет (обоснование)  объемов транспортируемой сточной жидкости от собственных подразделений (цехов)"]
[]
[null,null,null,null,null,null,null,null,null,null,null,"(тыс.м3)"]
[" № п/п","Наименование показателя","2015 год",null,"2016 год",null,"2017 год",null,"2018 год",null,"2019 год"]
[null,null,"Предусмотрено в тарифе","Факт по данным организации","Предусмотрено в тарифе","Ожидаемое исполнение по данным организации","План организации","Принято ЛенРТК","План организации","Принято ЛенРТК","План организации","Принято ЛенРТК"]
[]
[1,2,5,6,7,8,9,10,11,12,13,14]
["1.","Объем транспортируемой сточной жидкости от собственных подразделений (цехов) - всего:"]
[null,"в том числе:"]
["1.1."]
[" 1.2."]
[" 1.3."]
[]
[]
[]
["М.П."]
[null,"Должность руководителя, подпись",null,"Фамилия, имя, отчество"]
[]
[null,null,"                             "]
[null,"Должность исполнителя, подпись",null,"Фамилия, имя, отчество"]

{"sheet":"План мероприятий 2015 г","index":11,"n_rows":51,"n_cols":15,"rows_kept":51,"cut":false,"hidden":false,"merged":[[40,1,40,4],[41,1,41,4],[47,2,47,3],[47,4,47,6],[50,2,50,3],[50,4,50,6],[1,1,1,2],[1,9,1,10],[2,1,2,3],[2,9,2,11],[5,1,5,2],[5,9,5,10],[12,1,12,17],[14,1,18,1],[14,2,18,2],[14,3,18,3],[14,4,18,4],[14,5,15,6],[14,7,18,7],[14,8,15,11],[14,12,18,12],[16,5,18,5],[16,6,18,6],[16,8,17,9],[16,10,17,11],[31,1,31,14],[35,1,35,4],[14,13,18,13],[14,14,18,14],[36,1,36,14],[20,1,20,14],[21,1,21,14],[25,1,25,4],[26,1,26,14],[30,1,30,4]]}
[null,null,null,null,null,null,null,null,null,null,null,null,null,null,"Приложение 2"]
[null,"Согласовано:",null,null,null,null,null,null,null,"Согласовано:*",null,null,null,null,"Таблица 2.1"]
[null,"Глава администрации МО",null,null,null,null,null,null,null,"Руководитель "]
[]
[]
[null,"ФИО",null,"подпись",null,null,null,null,null,"ФИО",null,"подпись"]
[]
["МП","\"           \"","                                    2016 год",null,null,null,null,null,"МП","\"           \"","                                    2016 год"]
[]
[]
[]
[]
[null,"План мероприятий по повышению эффективности деятельности и энергосбережению на 2015 год"]
[]
[null,"№ п/п","Наименование мероприятия","Инвентарный номер (адрес) объекта ","Стадия технологического цикла","Затраты на реализацию мероприятий (тыс.руб. без НДС)",null,"Источники финансирования","Объем работ в натуральных показателях",null,null,null,"Вид ремонта","Исполнитель работ","Примечание"]
[]
[null,null,null,null,null,"план","факт",null,"план",null,"факт"]
[]
[null,null,null,null,null,null,null,null,"Ед. изм.","Значение (количество)","Ед. изм.","Значение (количество)"]
[null,1,2,3,4,5,6,7,8,9,10,11,12,13,14]
[null,"МО 1______________________________________________________"]
[null,"I раздел. Мероприятия по ремонту (капитальный, текущий и др)"]
[null,"1.1","Мероприятие 1"]
[null,"1.2","Мероприятие 2"]
[null,"…","…"]
[null,"Итого по I разделу",null,null,null,null,null,"х","х","х","х","х","х","х","х"]
[null,"II раздел. Мероприятия по реконструкции "]
[null,"2.1","Мероприятие 1",null,null,null,null,null,null,null,null,null,"х"]
[null,"2.2","Мероприятие 2"]
[null,"…","…"]
[null,"Итого по II разделу",null,null,null,null,null,"х","х","х","х","х","х","х","х"]
[null,"III раздел.  Иные мероприятия, направленные на совершенствование организации производства"]
[null,"3.1","Мероприятие 1",null,null,null,null,null,null,null,null,null,"х"]
[null,"3.2","Мероприятие 2"]
[null,"…","…"]
[null,"Итого по III разделу",null,null,null,null,null,"х","х","х","х","х","х","х","х"]
[null,"IV раздел. Мероприятия по энергосбережению и повышению энергетической эффективности"]
[null,"4.1","Мероприятие 1"]
[null,"4.2","Мероприятие 2"]
[null,"…","…"]
[null,"Итого по IV разделу",null,null,null,null,null,"х","х","х","х","х","х","х","х"]
[]
[]
[null," *  Согласуется руководителем Арендодателя в случае, если данное требование предусмотрено договорами аренды"]
[]
[]
[null,"М.П."]
[null,null,"Должность руководителя, подпись",null,"Фамилия, имя, отчество"]
[]
[null,null,null,"                             "]
[null,null,"Должность исполнителя, подпись",null,"Фамилия, имя, отчество"]

{"sheet":"План мероприятий 2016","index":12,"n_rows":51,"n_cols":15,"rows_kept":51,"cut":false,"hidden":false,"merged":[[50,2,50,3],[50,4,50,6],[47,4,47,6],[1,9,1,10],[2,9,2,11],[5,9,5,10],[12,1,12,17],[47,2,47,3],[1,1,1,2],[2,1,2,3],[5,1,5,2],[14,1,18,1],[14,2,18,2],[14,3,18,3],[14,4,18,4],[14,5,15,6],[20,1,20,14],[21,1,21,14],[14,13,18,13],[14,14,18,14],[36,1,36,14],[14,7,18,7],[14,8,15,11],[14,12,18,12],[16,5,18,5],[16,6,18,6],[16,8,17,9],[16,10,17,11],[40,1,40,4],[41,1,41,4],[25,1,25,4],[26,1,26,14],[30,1,30,4],[31,1,31,14],[35,1,35,4]]}
[null,null,null,null,null,null,null,null,null,null,null,null,null,null,"Приложение 2"]
[null,"Согласовано:",null,null,null,null,null,null,null,"Согласовано:*",null,null,null,null,"Таблица 2.2"]
[null,"Глава администрации МО",null,null,null,null,null,null,null,"Руководитель "]
[]
[]
[null,"ФИО",null,"подпись",null,null,null,null,null,"ФИО",null,"подпись"]
[]
["МП","\"           \"","                                    2016 год",null,null,null,null,null,"МП","\"           \"","                                    2016 год"]
[]
[]
[]
[]
[null,"План мероприятий по повышению эффективности деятельности и энергосбережению на 2016 год"]
[]
[null,"№ п/п","Наименование мероприятия","Инвентарный номер (адрес) объекта","Стадия технологического цикла","Затраты на реализацию мероприятий (тыс.руб.без НДС)",null,"Источники финансирования","Объем работ в натуральных показателях",null,null,null,"Вид ремонта","Исполнитель работ","Примечание"]
[]
[null,null,null,null,null,"план","ожидаемое",null,"план",null,"ожидаемое"]
[]
[null,null,null,null,null,null,null,null,"Ед. изм.","Значение (количество)","Ед. изм.","Значение (количество)"]
[null,1,2,3,4,5,6,7,8,9,10,11,12,13,14]
[null,"МО 1 ___________________________________________________________________________"]
[null,"I раздел. Мероприятия по ремонту (капитальный, текущий и др)"]
[null,"1.1","Мероприятие 1"]
[null,"1.2","Мероприятие 2"]
[null,"…","…"]
[null,"Итого по I разделу",null,null,null,null,null,"х","х","х","х","х","х","х","х"]
[null,"II раздел. Мероприятия по реконструкции "]
[null,"2.1","Мероприятие 1",null,null,null,null,null,null,null,null,null,"х"]
[null,"2.2","Мероприятие 2"]
[null,"…","…"]
[null,"Итого по II разделу",null,null,null,null,null,"х","х","х","х","х","х","х","х"]
[null,"III раздел.  Иные мероприятия, направленные на совершенствование организации производства"]
[null,"3.1","Мероприятие 1",null,null,null,null,null,null,null,null,null,"х"]
[null,"3.2","Мероприятие 2"]
[null,"…","…"]
[null,"Итого по III разделу",null,null,null,null,null,"х","х","х","х","х","х","х","х"]
[null,"IV раздел. Мероприятия по энергосбережению и повышению энергетической эффективности"]
[null,"4.1","Мероприятие 1"]
[null,"4.2","Мероприятие 2"]
[null,"…","…"]
[null,"Итого по IV разделу",null,null,null,null,null,"х","х","х","х","х","х","х","х"]
[]
[]
[null," *  Согласуется руководителем Арендодателя в случае, если данное требование предусмотрено договорами аренды"]
[]
[]
[null,"М.П."]
[null,null,"Должность руководителя, подпись",null,"Фамилия, имя, отчество"]
[]
[null,null,null,"                             "]
[null,null,"Должность исполнителя, подпись",null,"Фамилия, имя, отчество"]

{"sheet":"План мероприятий 2017","index":13,"n_rows":51,"n_cols":12,"rows_kept":51,"cut":false,"hidden":false,"merged":[[42,1,42,4],[47,2,47,3],[50,2,50,3],[50,4,50,6],[47,4,47,6],[2,1,2,2],[2,7,2,8],[3,1,3,3],[3,7,3,9],[6,1,6,2],[6,7,6,8],[13,1,13,11],[15,1,19,1],[15,2,19,2],[15,3,19,3],[15,4,19,4],[15,5,19,5],[15,6,19,6],[15,7,18,8],[15,9,19,9],[15,10,19,10],[15,11,19,11],[21,1,21,11],[22,1,22,11],[41,1,41,4],[26,1,26,4],[27,1,27,11],[31,1,31,4],[32,1,32,11],[36,1,36,4],[37,1,37,11]]}
[null,null,null,null,null,null,null,null,null,null,null,"Приложение 2"]
[null,null,null,null,null,null,null,null,null,null,null,"Таблица 2.3"]
[null,"Согласовано:",null,null,null,null,null,"Согласовано:*"]
[null,"Глава администрации МО",null,null,null,null,null,"Руководитель "]
[]
[]
[null,"ФИО",null,"подпись",null,null,null,"ФИО",null,"подпись"]
[]
["МП","\"           \"","                                    2016 год",null,null,null,"МП","\"           \"","                                    2016 год"]
[]
[]
[]
[]
[null,"План мероприятий по повышению эффективности деятельности и энергосбережению на 2017 год"]
[]
[null,"№ п/п","Наименование мероприятия","Инвентарный номер (адрес) объекта","Стадия технологического цикла","Затраты на реализацию мероприятий (тыс.руб.без НДС)","Источники финансирования","Объем работ в натуральных показателях",null,"Вид ремонта","Исполнитель работ","Примечание"]
[]
[]
[]
[null,null,null,null,null,null,null,"Ед. изм.","Значение (количество)"]
[null,1,2,3,4,5,"6",7,8,9,10,11]
[null,"МО 1 _________________________________________________________________________"]
[null,"I раздел. Мероприятия по ремонту (капитальный, текущий и др)"]
[null,"1.1","Мероприятие 1"]
[null,"1.2","Мероприятие 2"]
[null,"…","…"]
[null,"Итого по I разделу",null,null,null,null,"х","х","х","х","х","х"]
[null,"II раздел. Мероприятия по реконструкции "]
[null,"2.1","Мероприятие 1",null,null,null,null,null,null,"х"]
[null,"2.2","Мероприятие 2"]
[null,"…","…"]
[null,"Итого по II разделу",null,null,null,null,"х","х","х","х","х","х"]
[null,"III раздел.  Иные мероприятия, направленные на совершенствование организации производства"]
[null,"3.1","Мероприятие 1",null,null,null,null,null,null,"х"]
[null,"3.2","Мероприятие 2"]
[null,"…","…"]
[null,"Итого по III разделу",null,null,null,null,"х","х","х","х","х","х"]
[null,"IV раздел. Мероприятия по энергосбережению и повышению энергетической эффективности"]
[null,"4.1","Мероприятие 1"]
[null,"4.2","Мероприятие 2"]
[null,"…","…"]
[null,"Итого по IV разделу",null,null,null,null,"х","х","х","х","х","х"]
[]
[]
[null," *  Согласуется руководителем Арендодателя в случае, если данное требование предусмотрено договорами аренды"]
[]
[null,"М.П."]
[null,null,"Должность руководителя, подпись",null,"Фамилия, имя, отчество"]
[]
[null,null,null,"                             "]
[null,null,"Должность исполнителя, подпись",null,"Фамилия, имя, отчество"]

{"sheet":"План мероприятий 2018","index":14,"n_rows":51,"n_cols":12,"rows_kept":51,"cut":false,"hidden":false,"merged":[[2,1,2,2],[2,7,2,8],[3,1,3,3],[3,7,3,9],[6,1,6,2],[6,7,6,8],[31,1,31,4],[13,1,13,11],[15,1,19,1],[15,2,19,2],[15,3,19,3],[15,4,19,4],[15,5,19,5],[15,6,19,6],[15,7,18,8],[15,9,19,9],[15,10,19,10],[15,11,19,11],[21,1,21,11],[22,1,22,11],[26,1,26,4],[27,1,27,11],[50,2,50,3],[50,4,50,6],[32,1,32,11],[36,1,36,4],[37,1,37,11],[41,1,41,4],[42,1,42,4],[47,2,47,3],[47,4,47,6]]}
[null,null,null,null,null,null,null,null,null,null,null,"Приложение 2"]
[null,null,null,null,null,null,null,null,null,null,null,"Таблица 2.4"]
[null,"Согласовано:",null,null,null,null,null,"Согласовано:*"]
[null,"Глава администрации МО",null,null,null,null,null,"Руководитель "]
[]
[]
[null,"ФИО",null,"подпись",null,null,null,"ФИО",null,"подпись"]
[]
["МП","\"           \"","                                    2016 год",null,null,null,"МП","\"           \"","                                    2016 год"]
[]
[]
[]
[]
[null,"План мероприятий по повышению эффективности деятельности и энергосбережению на 2018 год"]
[]
[null,"№ п/п","Наименование мероприятия","Инвентарный номер (адрес) объекта","Стадия технологического цикла","Затраты на реализацию мероприятий (тыс.руб.без НДС)","Источники финансирования","Объем работ в натуральных показателях",null,"Вид ремонта","Исполнитель работ","Примечание"]
[]
[]
[]
[null,null,null,null,null,null,null,"Ед. изм.","Значение (количество)"]
[null,1,2,3,4,5,"6",7,8,9,10,11]
[null,"МО 1 _________________________________________________________________________"]
[null,"I раздел. Мероприятия по ремонту (капитальный, текущий и др)"]
[null,"1.1","Мероприятие 1"]
[null,"1.2","Мероприятие 2"]
[null,"…","…"]
[null,"Итого по I разделу",null,null,null,null,"х","х","х","х","х","х"]
[null,"II раздел. Мероприятия по реконструкции "]
[null,"2.1","Мероприятие 1",null,null,null,null,null,null,"х"]
[null,"2.2","Мероприятие 2"]
[null,"…","…"]
[null,"Итого по II разделу",null,null,null,null,"х","х","х","х","х","х"]
[null,"III раздел.  Иные мероприятия, направленные на совершенствование организации производства"]
[null,"3.1","Мероприятие 1",null,null,null,null,null,null,"х"]
[null,"3.2","Мероприятие 2"]
[null,"…","…"]
[null,"Итого по III разделу",null,null,null,null,"х","х","х","х","х","х"]
[null,"IV раздел. Мероприятия по энергосбережению и повышению энергетической эффективности"]
[null,"4.1","Мероприятие 1"]
[null,"4.2","Мероприятие 2"]
[null,"…","…"]
[null,"Итого по IV разделу",null,null,null,null,"х","х","х","х","х","х"]
[]
[]
[null," *  Согласуется руководителем Арендодателя в случае, если данное требование предусмотрено договорами аренды"]
[]
[null,"М.П."]
[null,null,"Должность руководителя, подпись",null,"Фамилия, имя, отчество"]
[]
[null,null,null,"                             "]
[null,null,"Должность исполнителя, подпись",null,"Фамилия, имя, отчество"]

{"sheet":"План мероприятий 2019","index":15,"n_rows":51,"n_cols":12,"rows_kept":51,"cut":false,"hidden":false,"merged":[[2,1,2,2],[2,7,2,8],[3,1,3,3],[3,7,3,9],[6,1,6,2],[6,7,6,8],[31,1,31,4],[13,1,13,11],[15,1,19,1],[15,2,19,2],[15,3,19,3],[15,4,19,4],[15,5,19,5],[15,6,19,6],[15,7,18,8],[15,9,19,9],[15,10,19,10],[15,11,19,11],[21,1,21,11],[22,1,22,11],[26,1,26,4],[27,1,27,11],[50,2,50,3],[50,4,50,6],[32,1,32,11],[36,1,36,4],[37,1,37,11],[41,1,41,4],[42,1,42,4],[47,2,47,3],[47,4,47,6]]}
[null,null,null,null,null,null,null,null,null,null,null,"Приложение 2"]
[null,null,null,null,null,null,null,null,null,null,null,"Таблица 2.5"]
[null,"Согласовано:",null,null,null,null,null,"Согласовано:*"]
[null,"Глава администрации МО",null,null,null,null,null,"Руководитель "]
[]
[]
[null,"ФИО",null,"подпись",null,null,null,"ФИО",null,"подпись"]
[]
["МП","\"           \"","                                    2016 год",null,null,null,"МП","\"           \"","                                    2016 год"]
[]
[]
[]
[]
[null,"План мероприятий по повышению эффективности деятельности и энергосбережению на 2019 год"]
[]
[null,"№ п/п","Наименование мероприятия","Инвентарный номер (адрес) объекта","Стадия технологического цикла","Затраты на реализацию мероприятий (тыс.руб.без НДС)","Источники финансирования","Объем работ в натуральных показателях",null,"Вид ремонта","Исполнитель работ","Примечание"]
[]
[]
[]
[null,null,null,null,null,null,null,"Ед. изм.","Значение (количество)"]
[null,1,2,3,4,5,"6",7,8,9,10,11]
[null,"МО 1 _________________________________________________________________________"]
[null,"I раздел. Мероприятия по ремонту (капитальный, текущий и др)"]
[null,"1.1","Мероприятие 1"]
[null,"1.2","Мероприятие 2"]
[null,"…","…"]
[null,"Итого по I разделу",null,null,null,null,"х","х","х","х","х","х"]
[null,"II раздел. Мероприятия по реконструкции "]
[null,"2.1","Мероприятие 1",null,null,null,null,null,null,"х"]
[null,"2.2","Мероприятие 2"]
[null,"…","…"]
[null,"Итого по II разделу",null,null,null,null,"х","х","х","х","х","х"]
[null,"III раздел.  Иные мероприятия, направленные на совершенствование организации производства"]
[null,"3.1","Мероприятие 1",null,null,null,null,null,null,"х"]
[null,"3.2","Мероприятие 2"]
[null,"…","…"]
[null,"Итого по III разделу",null,null,null,null,"х","х","х","х","х","х"]
[null,"IV раздел. Мероприятия по энергосбережению и повышению энергетической эффективности"]
[null,"4.1","Мероприятие 1"]
[null,"4.2","Мероприятие 2"]
[null,"…","…"]
[null,"Итого по IV разделу",null,null,null,null,"х","х","х","х","х","х"]
[]
[]
[null," *  Согласуется руководителем Арендодателя в случае, если данное требование предусмотрено договорами аренды"]
[]
[null,"М.П."]
[null,null,"Должность руководителя, подпись",null,"Фамилия, имя, отчество"]
[]
[null,null,null,"                             "]
[null,null,"Должность исполнителя, подпись",null,"Фамилия, имя, отчество"]